bitfinex/quotes_SOLUSD_20250721
["timestamp","ask_amount","ask_price","bid_price","bid_amount"]
[1753081301300,37.14,189.35,189.32,0.72]
[1753081302094,37.14,189.35,189.32,6.00188991]
[1753081305223,37.14,189.35,189.32,6.20188991]
[1753081305997,10.598316,189.36,189.32,5.48188991]
[1753081306206,37.14,189.35,189.33,0.68]
[1753081306408,37.14,189.35,189.34,0.68]
[1753081306584,37.14,189.35,189.34,0.88]
[1753081307802,37.14,189.35,189.34,6.16150417]
[1753081308002,37.14,189.35,189.34,0.2]
[1753081311104,37.82,189.35,189.33,0.2]
[1753081311790,42.334916,189.35,189.33,0.2]
[1753081311992,37.82,189.35,189.33,0.2]
[1753081312419,0.68,189.34,189.33,0.2]
[1753081312725,5.194916,189.34,189.33,0.2]
[1753081313426,0.68,189.34,189.33,0.2]
[1753081313832,37.14,189.35,189.33,5.48176788]
[1753081313995,37.14,189.35,189.33,6.16176788]
[1753081314428,41.654916,189.35,189.33,0.2]
[1753081314622,6.0245,189.34,189.33,0.2]
[1753081314804,28.00409997,189.34,189.28,0.2]
[1753081315007,4.514916,189.29,189.27,0.23]
[1753081315203,58.75959997,189.28,189.27,0.03]
[1753081315700,64.04277833,189.28,189.27,0.03]
[1753081315906,71.34387833,189.28,189.27,0.03]
[1753081317426,66.06069997,189.28,189.27,0.03]
[1753081317634,71.34387833,189.28,189.27,0.03]
[1753081318800,66.06069997,189.28,189.27,0.03]
[1753081319214,27.92069997,189.28,189.27,0.03]
[1753081319415,65.38069997,189.28,189.27,0.03]
[1753081319620,27.92069997,189.28,189.27,0.03]
[1753081319812,58.75959997,189.28,189.27,0.03]
[1753081320231,21.29959997,189.28,189.27,0.03]
[1753081320408,37.46,189.28,189.27,0.71]
[1753081321036,37.46,189.28,189.27,0.03]
[1753081321244,6.5548,189.33,189.27,0.03]
[1753081321440,21.29959997,189.34,189.28,4.514916]
[1753081321620,37.46,189.32,189.29,5.28289925]
[1753081321808,37.46,189.32,189.3,0.68]
[1753081322006,37.46,189.32,189.31,0.68]
[1753081322519,0.06,189.35,189.31,5.194916]
[1753081322715,0.06,189.35,189.33,4.514916]
[1753081323110,0.06,189.35,189.34,0.68]
[1753081323637,0.06,189.35,189.34,5.96150417]
[1753081324732,0.06,189.35,189.32,26.0]
[1753081325034,0.06,189.35,189.32,31.28201752]
[1753081325213,0.06,189.35,189.32,31.96201752]
[1753081326111,0.06,189.35,189.32,26.68]
[1753081326419,0.06,189.35,189.32,26.0]
[1753081327027,16.78468397,189.34,189.32,26.0]
[1753081327239,54.24468397,189.34,189.32,26.0]
[1753081328532,54.24468397,189.34,189.33,0.68]
[1753081330042,54.24468397,189.34,189.33,5.96178312]
[1753081330839,16.78468397,189.34,189.33,5.96178312]
[1753081331740,37.48,189.35,189.33,5.96178312]
[1753081332110,16.84468397,189.35,189.34,0.68]
[1753081333315,0.06,189.35,189.34,5.96150417]
[1753081334336,0.06,189.35,189.34,10.47642017]
[1753081334842,0.06,189.35,189.34,6.16150417]
[1753081335538,0.06,189.35,189.34,10.67642017]
[1753081335715,0.06,189.35,189.34,0.2]
[1753081335919,0.06,189.35,189.3,26.87]
[1753081335920,16.78468397,189.34,189.3,26.87]
[1753081336225,16.78468397,189.34,189.31,5.95211779]
[1753081336934,0.06,189.35,189.33,4.514916]
[1753081337137,0.06,189.35,189.34,4.514916]
[1753081337325,0.06,189.35,189.34,5.184916]
[1753081337638,0.06,189.35,189.34,10.46642017]
[1753081337934,0.06,189.35,189.34,11.19457058]
[1753081338920,0.06,189.35,189.34,10.66642017]
[1753081339438,0.06,189.35,189.34,6.15150417]
[1753081339613,0.06,189.35,189.34,10.66642017]
[1753081339813,0.06,189.35,189.34,6.15150417]
[1753081340038,0.06,189.35,189.34,10.66642017]
[1753081342628,0.06,189.36,189.34,10.66642017]
[1753081342832,1e-08,189.37,189.35,10.22795452]
[1753081343055,0.2,189.39,189.38,26.2]
[1753081343257,0.2,189.39,189.38,36.52334349]
[1753081343461,0.2,189.39,189.38,37.19334349]
[1753081344232,0.2,189.39,189.38,32.67842749]
[1753081344548,0.2,189.39,189.38,37.19334349]
[1753081345052,1e-08,189.39,189.38,37.19334349]
[1753081345352,1e-08,189.39,189.38,32.67842749]
[1753081345524,1e-08,189.39,189.38,37.19334349]
[1753081346833,1e-08,189.39,189.38,35.37577984]
[1753081347033,1e-08,189.39,189.38,77.25069584]
[1753081347238,1e-08,189.39,189.33,4.22121322]
[1753081347239,16.78468397,189.38,189.33,4.22121322]
[1753081347437,16.78468397,189.36,189.33,4.22121322]
[1753081347663,16.78468397,189.36,189.31,35.79722824]
[1753081347834,0.71,189.35,189.33,26.0]
[1753081348035,16.78468397,189.36,189.33,26.0]
[1753081348239,17.49468397,189.36,189.33,26.0]
[1753081348430,17.49468397,189.36,189.32,4.514916]
[1753081348757,17.49468397,189.36,189.33,26.0]
[1753081349326,1e-08,189.39,189.34,5.184916]
[1753081349552,1e-08,189.39,189.36,4.514916]
[1753081349755,1e-08,189.39,189.37,4.514916]
[1753081349959,1e-08,189.39,189.35,5.184916]
[1753081350558,1e-08,189.39,189.36,5.184916]
[1753081352230,1e-08,189.39,189.37,5.28066747]
[1753081353456,0.71000001,189.39,189.37,5.28066747]
[1753081354347,1e-08,189.39,189.36,5.28094634]
[1753081354547,1e-08,189.39,189.36,5.95094634]
[1753081355441,1e-08,189.39,189.36,6.15094634]
[1753081356159,1e-08,189.39,189.36,10.66586234]
[1753081356465,1e-08,189.39,189.37,5.184916]
[1753081356662,16.78468397,189.37,189.34,0.67]
[1753081357163,16.78468397,189.35,189.33,5.279]
[1753081357365,17.49468397,189.35,189.33,5.279]
[1753081357568,17.49468397,189.35,189.33,31.279]
[1753081359270,16.78468397,189.35,189.33,31.279]
[1753081359648,17.49468397,189.37,189.33,31.279]
[1753081359958,16.78468397,189.35,189.33,31.279]
[1753081360156,16.78468397,189.35,189.33,31.309]
[1753081360376,16.78468397,189.35,189.33,36.59076877]
[1753081361761,16.78468397,189.35,189.33,31.309]
[1753081363057,16.78468397,189.35,189.31,5.279]
[1753081363260,17.49468397,189.35,189.31,5.279]
[1753081364280,5.224916,189.37,189.32,5.28206211]
[1753081364447,16.78468397,189.35,189.32,5.28206211]
[1753081366753,0.71,189.35,189.32,5.28206211]
[1753081367266,0.71,189.34,189.32,5.28206211]
[1753081367647,16.78468397,189.35,189.32,5.28206211]
[1753081367862,0.71,189.33,189.32,5.28206211]
[1753081368470,16.78468397,189.35,189.32,5.28206211]
[1753081368663,17.49468397,189.34,189.3,30.514916]
[1753081368877,0.71,189.34,189.31,5.28234113]
[1753081369260,0.71,189.34,189.31,9.79725713]
[1753081369656,17.49468397,189.36,189.31,9.79725713]
[1753081369875,16.78468397,189.34,189.31,10.50725713]
[1753081373466,16.78468397,189.34,189.31,9.79725713]
[1753081373656,17.49468397,189.34,189.31,9.79725713]
[1753081374173,0.71,189.33,189.31,5.28234113]
[1753081374975,4.514916,189.36,189.31,5.28234113]
[1753081375177,0.71,189.33,189.31,5.28234113]
[1753081375964,0.71,189.36,189.31,10.50725713]
[1753081376256,16.78468397,189.34,189.31,10.50725713]
[1753081376669,0.71,189.34,189.31,9.79725713]
[1753081376874,0.71,189.34,189.31,5.28234113]
[1753081378377,4.514916,189.36,189.31,5.28234113]
[1753081378564,0.71,189.35,189.31,5.99234113]
[1753081379452,16.78468397,189.38,189.32,4.514916]
[1753081379661,0.71,189.37,189.32,5.224916]
[1753081379868,0.71,189.36,189.32,5.224916]
[1753081380291,0.71,189.35,189.31,5.28234113]
[1753081380462,16.78468397,189.34,189.3,35.79745227]
[1753081380663,5.224916,189.33,189.28,0.03]
[1753081380862,16.78468397,189.32,189.28,0.03]
[1753081381079,17.49468397,189.32,189.29,26.0]
[1753081381289,21.29959997,189.32,189.28,5.3131]
[1753081381598,21.29959997,189.29,189.28,0.03]
[1753081381894,29.36459997,189.29,189.28,0.03]
[1753081382207,30.07459997,189.29,189.28,0.03]
[1753081382887,35.88587288,189.29,189.28,0.03]
[1753081383086,30.60297363,189.29,189.28,0.03]
[1753081383395,67.76297363,189.29,189.28,0.03]
[1753081383778,30.60297363,189.29,189.28,0.03]
[1753081383979,67.25459997,189.29,189.28,0.03]
[1753081384898,62.02968397,189.29,189.28,0.03]
[1753081385197,53.96468397,189.29,189.28,0.03]
[1753081385377,0.71,189.31,189.28,0.03]
[1753081385695,37.18,189.3,189.29,4.514916]
[1753081385873,37.18,189.3,189.29,0.71]
[1753081386070,37.18,189.3,189.29,5.224916]
[1753081386384,16.78468397,189.32,189.29,5.224916]
[1753081386697,16.78468397,189.32,189.3,9.79753617]
[1753081387392,16.78468397,189.32,189.3,5.28262017]
[1753081387685,16.78468397,189.32,189.3,9.79753617]
[1753081388191,16.78468397,189.32,189.3,10.50753617]
[1753081388973,16.78468397,189.32,189.3,9.79753617]
[1753081390686,1.5143,189.34,189.31,5.224916]
[1753081390880,0.06,189.35,189.33,4.514916]
[1753081391193,0.06,189.35,189.34,4.514916]
[1753081391705,0.06,189.35,189.34,5.224916]
[1753081392774,0.06,189.35,189.34,10.50642017]
[1753081395400,0.06,189.35,189.34,9.79642017]
[1753081395603,0.06,189.35,189.34,10.47642017]
[1753081396181,0.06,189.35,189.34,9.79642017]
[1753081398192,37.93,189.35,189.32,9.79675889]
[1753081398504,0.71,189.34,189.33,26.0]
[1753081398997,0.71,189.34,189.33,31.28178312]
[1753081399175,37.22,189.35,189.33,35.79669912]
[1753081400697,37.22,189.35,189.34,5.194916]
[1753081400997,37.22,189.35,189.34,4.514916]
[1753081401181,37.22,189.35,189.34,10.47642017]
[1753081401378,0.06,189.35,189.34,10.47642017]
[1753081407883,0.06,189.35,189.34,5.28150417]
[1753081408190,0.06,189.35,189.34,9.79642017]
[1753081408892,0.06,189.35,189.34,10.47642017]
[1753081411486,0.06,189.35,189.34,9.79642017]
[1753081412093,0.06,189.35,189.34,10.47642017]
[1753081412993,0.06,189.35,189.34,5.96150417]
[1753081413203,0.06,189.35,189.34,10.47642017]
[1753081414997,1e-08,189.39,189.34,23.6801806]
[1753081415184,1e-08,189.39,189.38,4.514916]
[1753081415593,1e-08,189.39,189.38,5.194916]
[1753081415908,1e-08,189.39,189.38,0.68]
[1753081416082,1e-08,189.39,189.37,30.514916]
[1753081416286,1e-08,189.39,189.38,26.0]
[1753081416516,1e-08,189.39,189.38,30.514916]
[1753081416828,0.71000001,189.39,189.38,35.79530463]
[1753081417011,0.71000001,189.39,189.38,31.28038863]
[1753081417311,1e-08,189.39,189.38,35.79530463]
[1753081417986,1e-08,189.39,189.38,31.28038863]
[1753081418286,1e-08,189.39,189.38,36.47530463]
[1753081421011,1e-08,189.39,189.38,73.61530463]
[1753081424619,1e-08,189.39,189.38,35.79530463]
[1753081425495,1e-08,189.39,189.38,36.50530463]
[1753081426999,1e-08,189.39,189.38,31.99038863]
[1753081427207,1e-08,189.39,189.38,36.50530463]
[1753081427605,1e-08,189.39,189.38,35.79530463]
[1753081428006,1e-08,189.39,189.38,36.50530463]
[1753081429923,1e-08,189.39,189.38,31.28038863]
[1753081430105,1e-08,189.39,189.38,36.50530463]
[1753081430817,1e-08,189.39,189.38,37.03334349]
[1753081432026,1e-08,189.39,189.38,36.32334349]
[1753081432727,1e-08,189.39,189.38,37.03334349]
[1753081432925,1e-08,189.39,189.38,36.32334349]
[1753081434733,1e-08,189.39,189.38,31.80842749]
[1753081435020,1e-08,189.39,189.38,36.32334349]
[1753081436615,1e-08,189.39,189.38,31.80842749]
[1753081436818,1e-08,189.39,189.38,35.79530463]
[1753081437604,1e-08,189.39,189.38,36.50530463]
[1753081439234,0.70000001,189.39,189.38,35.79530463]
[1753081439422,1e-08,189.39,189.38,35.79530463]
[1753081441214,1e-08,189.39,189.38,36.32334349]
[1753081441419,0.70000001,189.39,189.38,31.80842749]
[1753081441723,0.70000001,189.39,189.38,4.514916]
[1753081441924,0.70000001,189.39,189.38,30.514916]
[1753081442518,0.70000001,189.39,189.38,35.79530463]
[1753081443529,2.32490001,189.39,189.38,26.0]
[1753081443708,2.32490001,189.39,189.38,35.79530463]
[1753081444314,1.62490001,189.39,189.38,35.79530463]
[1753081444525,2.32490001,189.39,189.38,31.28038863]
[1753081444729,2.32490001,189.39,189.38,35.79530463]
[1753081448025,6.2772,189.38,189.35,5.31099791]
[1753081448340,23.06188397,189.38,189.37,26.0]
[1753081448706,23.76188397,189.38,189.36,5.28091856]
[1753081448906,0.7,189.37,189.36,5.28091856]
[1753081449124,0.7,189.37,189.36,9.79583456]
[1753081451914,0.7,189.37,189.35,5.31122524]
[1753081452115,0.7,189.37,189.35,9.82614124]
[1753081452312,16.78468397,189.36,189.35,0.03]
[1753081452730,17.48468397,189.36,189.35,0.03]
[1753081453551,17.48468397,189.36,189.35,4.544916]
[1753081454632,0.7,189.36,189.35,9.82614124]
[1753081454839,6.2772,189.38,189.35,9.82614124]
[1753081455027,6.2772,189.38,189.37,4.514916]
[1753081455540,6.2772,189.38,189.37,30.514916]
[1753081456339,1e-08,189.39,189.38,31.28038863]
[1753081456519,1e-08,189.39,189.38,35.79530463]
[1753081457741,0.71000001,189.39,189.38,35.79530463]
[1753081458655,1e-08,189.39,189.38,35.79530463]
[1753081459228,1e-08,189.39,189.38,31.28038863]
[1753081459429,0.71000001,189.39,189.38,35.79530463]
[1753081460252,1e-08,189.39,189.38,35.79530463]
[1753081460432,1e-08,189.39,189.38,36.50219179]
[1753081462756,0.71000001,189.39,189.38,31.98727579]
[1753081462927,0.71000001,189.39,189.38,36.50219179]
[1753081463127,0.71000001,189.39,189.38,31.98727579]
[1753081463429,0.71000001,189.39,189.38,36.50219179]
[1753081464249,0.71000001,189.39,189.38,36.42083199]
[1753081464566,0.71000001,189.39,189.38,31.90591599]
[1753081464860,0.71000001,189.39,189.38,36.42083199]
[1753081465349,0.71000001,189.39,189.38,26.62552736]
[1753081465527,0.71000001,189.39,189.38,36.37766767]
[1753081465733,0.71000001,189.39,189.38,31.86275167]
[1753081466053,0.71000001,189.39,189.38,26.58236304]
[1753081466435,0.71000001,189.39,189.38,31.86275167]
[1753081467035,0.71000001,189.39,189.38,26.58236304]
[1753081467832,0.71000001,189.39,189.38,0.70688716]
[1753081467833,19.15058398,189.39,189.38,0.70688716]
[1753081468030,28.9456098,189.39,189.38,0.70688716]
[1753081468230,23.66549998,189.39,189.38,0.70688716]
[1753081468430,16.78468397,189.38,189.36,0.65224096]
[1753081468638,54.61468397,189.38,189.36,0.65224096]
[1753081468961,0.71,189.37,189.36,0.65224096]
[1753081469153,2.36590001,189.39,189.36,10.44809204]
[1753081469351,0.71,189.38,189.36,10.44809204]
[1753081469554,0.71,189.38,189.37,0.65220652]
[1753081470079,38.77590001,189.39,189.37,0.65220652]
[1753081470080,1e-08,189.39,189.38,5.28038863]
[1753081470243,1e-08,189.39,189.38,37.01334349]
[1753081470581,0.71000001,189.39,189.38,0.65217208]
[1753081470882,16.78468397,189.36,189.35,0.03]
[1753081471280,17.49468397,189.36,189.35,0.03]
[1753081471488,18.02305763,189.36,189.35,0.03]
[1753081471766,24.65505763,189.36,189.35,0.03]
[1753081472137,24.12668397,189.36,189.35,0.62662015]
[1753081472961,7.342,189.36,189.35,0.62662015]
[1753081473143,43.752,189.36,189.35,0.62662015]
[1753081473350,6.632,189.36,189.35,10.42276139]
[1753081474162,1.5758,189.37,189.35,10.42276139]
[1753081474550,0.71,189.36,189.35,5.90784539]
[1753081475258,0.71,189.36,189.35,0.62662015]
[1753081477575,37.83,189.36,189.35,0.62662015]
[1753081477782,0.71,189.36,189.35,0.62662015]
[1753081477943,54.61468397,189.36,189.35,0.62662015]
[1753081478148,17.49468397,189.36,189.35,0.62662015]
[1753081478369,54.61468397,189.36,189.35,0.62662015]
[1753081480650,59.12959997,189.36,189.35,0.62662015]
[1753081480908,54.61468397,189.36,189.35,0.62662015]
[1753081482174,59.12959997,189.36,189.35,0.62662015]
[1753081482479,60.69288397,189.36,189.35,0.62662015]
[1753081483179,65.20779997,189.36,189.35,0.62662015]
[1753081484367,60.69288397,189.36,189.35,0.62662015]
[1753081484576,65.20779997,189.36,189.35,0.62662015]
[1753081485258,60.69288397,189.36,189.35,0.62662015]
[1753081485674,65.20779997,189.36,189.35,0.62662015]
[1753081486686,60.69288397,189.36,189.35,0.62662015]
[1753081486983,22.86288397,189.36,189.35,5.90784539]
[1753081487187,59.98288397,189.36,189.35,0.62662015]
[1753081487486,60.67288397,189.36,189.35,0.62662015]
[1753081487978,65.18779997,189.36,189.35,0.62662015]
[1753081488864,23.55288397,189.36,189.35,0.62662015]
[1753081489066,60.67288397,189.36,189.35,0.62662015]
[1753081493481,70.46874631,189.36,189.35,0.62662015]
[1753081494095,60.67288397,189.36,189.35,0.62662015]
[1753081495876,59.98288397,189.36,189.35,0.62662015]
[1753081496068,1.5758,189.37,189.35,1.29662015]
[1753081496262,38.1,189.36,189.35,6.57784539]
[1753081496467,38.12,189.36,189.35,6.57784539]
[1753081496687,38.81,189.36,189.35,0.62662015]
[1753081496997,55.59468397,189.36,189.35,0.62662015]
[1753081498065,54.90468397,189.36,189.35,0.62662015]
[1753081498265,54.90468397,189.36,189.35,5.90784539]
[1753081498672,54.90468397,189.36,189.35,10.42276139]
[1753081498875,54.90468397,189.36,189.35,0.62662015]
[1753081499273,55.59468397,189.36,189.35,0.62662015]
[1753081501275,54.90468397,189.36,189.35,5.14153615]
[1753081501478,38.12,189.36,189.35,5.90784539]
[1753081501678,38.12,189.36,189.35,6.57784539]
[1753081502001,38.12,189.36,189.35,11.09276139]
[1753081502374,38.12,189.36,189.35,10.42276139]
[1753081502592,38.12,189.36,189.35,5.90784539]
[1753081502984,38.12,189.36,189.35,10.42276139]
[1753081502985,37.17772675,189.36,189.35,10.42276139]
[1753081503486,37.17772675,189.36,189.35,5.90784539]
[1753081503687,37.17772675,189.36,189.35,10.42276139]
[1753081504472,37.17772675,189.36,189.35,5.90784539]
[1753081505282,0.06,189.38,189.35,5.81153615]
[1753081505486,38.83,189.37,189.35,5.90777244]
[1753081505800,17.47468397,189.36,189.35,0.62662015]
[1753081506374,17.47468397,189.36,189.35,5.90784539]
[1753081506577,16.78468397,189.36,189.35,5.90784539]
[1753081506787,17.47468397,189.36,189.35,0.62662015]
[1753081507381,17.47468397,189.36,189.35,5.90784539]
[1753081509183,18.00305763,189.36,189.35,0.62662015]
[1753081509779,25.78115763,189.36,189.35,0.62662015]
[1753081510285,0.75,189.38,189.35,5.90784539]
[1753081510607,38.14,189.37,189.36,4.514916]
[1753081511179,38.14,189.37,189.36,10.46586234]
[1753081511514,38.14,189.37,189.36,31.95094634]
[1753081511515,38.16,189.37,189.36,31.95094634]
[1753081511686,38.16,189.37,189.36,31.28094634]
[1753081512080,38.16,189.37,189.36,35.79586234]
[1753081512301,38.22,189.37,189.36,9.79586234]
[1753081513520,38.22,189.37,189.36,5.28094634]
[1753081513690,38.22,189.37,189.36,9.79586234]
[1753081514194,38.22,189.37,189.35,5.90781663]
[1753081514195,38.92,189.37,189.35,5.90781663]
[1753081514392,17.48468397,189.36,189.35,0.62662015]
[1753081517504,16.78468397,189.36,189.35,0.62662015]
[1753081518810,17.48468397,189.36,189.35,0.62662015]
[1753081519697,18.01305763,189.36,189.35,0.62662015]
[1753081521410,56.11305763,189.36,189.35,0.62662015]
[1753081522918,60.62797363,189.36,189.35,0.62662015]
[1753081523121,78.39683597,189.36,189.31,0.03]
[1753081523286,21.29959997,189.32,189.31,0.03]
[1753081523483,59.90797363,189.32,189.31,0.03]
[1753081523703,60.60797363,189.32,189.31,0.03]
[1753081524187,54.86468397,189.32,189.31,0.03]
[1753081524387,16.78468397,189.32,189.31,0.03]
[1753081524612,54.86468397,189.32,189.31,0.03]
[1753081525621,0.52837366,189.35,189.31,0.7]
[1753081525789,38.1,189.34,189.31,5.214916]
[1753081525988,24.75768397,189.36,189.32,5.184916]
[1753081526191,54.86468397,189.35,189.32,5.184916]
[1753081526618,54.86468397,189.35,189.33,10.33997718]
[1753081526814,38.08,189.34,189.33,11.00997718]
[1753081527889,38.08,189.34,189.33,6.49506118]
[1753081528292,38.08,189.34,189.33,5.82506118]
[1753081528720,38.08,189.34,189.33,6.49506118]
[1753081529017,16.78468397,189.36,189.33,6.49506118]
[1753081529224,38.06,189.35,189.33,5.82506118]
[1753081529396,38.06,189.35,189.33,6.49506118]
[1753081529722,38.06,189.35,189.33,5.82506118]
[1753081531324,38.06,189.35,189.33,10.33997718]
[1753081531527,38.06,189.35,189.33,5.82506118]
[1753081531732,38.04,189.34,189.33,10.33997718]
[1753081533822,38.04,189.34,189.33,11.00997718]
[1753081534220,38.04,189.34,189.33,6.52506118]
[1753081534433,38.04,189.34,189.33,11.03997718]
[1753081535228,38.04,189.34,189.33,10.36997718]
[1753081537729,17.54468397,189.36,189.33,10.36997718]
[1753081537927,37.98,189.35,189.33,10.36997718]
[1753081538113,38.68,189.35,189.33,10.36997718]
[1753081538519,0.06,189.36,189.33,5.85506118]
[1753081538699,38.68,189.35,189.33,10.36997718]
[1753081538905,37.98,189.35,189.33,5.85506118]
[1753081539112,17.48468397,189.34,189.33,0.57327806]
[1753081540444,18.01305763,189.34,189.33,0.57327806]
[1753081540653,30.38767363,189.34,189.33,0.57327806]
[1753081541233,35.6691778,189.34,189.33,0.57327806]
[1753081541839,16.78468397,189.33,189.31,0.03]
[1753081542020,59.78797363,189.32,189.31,0.03]
[1753081542221,60.48797363,189.32,189.31,0.03]
[1753081543540,65.77003574,189.32,189.31,0.03]
[1753081543730,18.01305763,189.32,189.31,0.03]
[1753081543918,55.95305763,189.32,189.31,0.03]
[1753081544228,54.72468397,189.32,189.31,0.03]
[1753081544944,54.72468397,189.32,189.31,4.544916]
[1753081545321,54.72468397,189.32,189.31,5.05762246]
[1753081545717,54.72468397,189.32,189.31,10.33996359]
[1753081546741,54.72468397,189.32,189.31,5.82504759]
[1753081546926,54.72468397,189.32,189.31,10.33996359]
[1753081547819,54.72468397,189.32,189.31,5.82504759]
[1753081548041,54.72468397,189.32,189.31,10.33996359]
[1753081548341,54.72468397,189.32,189.31,0.03]
[1753081549165,55.40468397,189.32,189.31,0.03]
[1753081549529,55.36468397,189.32,189.31,0.03]
[1753081552429,54.68468397,189.32,189.31,0.03]
[1753081554352,16.78468397,189.32,189.31,0.03]
[1753081554548,54.68468397,189.32,189.31,0.03]
[1753081554855,16.78468397,189.32,189.31,0.03]
[1753081555030,54.68468397,189.32,189.31,0.03]
[1753081555826,54.66468397,189.32,189.31,0.03]
[1753081556134,37.88,189.32,189.31,5.224916]
[1753081556856,37.88,189.32,189.31,0.71]
[1753081557162,37.88,189.32,189.31,10.50725713]
[1753081557359,0.06,189.33,189.31,10.50725713]
[1753081557539,0.06,189.33,189.32,4.514916]
[1753081557862,0.06,189.33,189.31,5.99234113]
[1753081558026,37.92,189.33,189.31,5.31234113]
[1753081558222,37.86,189.32,189.31,0.03]
[1753081558427,55.32468397,189.32,189.31,0.03]
[1753081559368,54.64468397,189.32,189.31,0.03]
[1753081559656,54.64468397,189.32,189.31,5.224916]
[1753081559657,37.92,189.32,189.31,5.224916]
[1753081559868,17.46468397,189.32,189.31,0.03]
[1753081560069,55.38468397,189.32,189.31,0.03]
[1753081560939,54.70468397,189.32,189.31,0.03]
[1753081561340,0.06,189.33,189.31,4.544916]
[1753081561581,37.96,189.32,189.31,0.71]
[1753081562767,37.96,189.32,189.31,5.224916]
[1753081563367,37.96,189.32,189.31,10.50725713]
[1753081563860,0.06,189.33,189.31,10.50725713]
[1753081564067,0.06,189.33,189.32,5.194916]
[1753081565568,0.06,189.33,189.32,10.47697811]
[1753081566793,0.06,189.33,189.31,5.31227356]
[1753081566969,37.96,189.33,189.31,9.82718956]
[1753081567283,37.96,189.33,189.31,5.31227356]
[1753081567284,38.64,189.33,189.31,5.31227356]
[1753081567572,0.74,189.33,189.31,5.31227356]
[1753081567783,37.88,189.32,189.31,5.31227356]
[1753081568280,37.88,189.32,189.31,9.82718956]
[1753081568645,37.88,189.32,189.31,10.50718956]
[1753081569364,37.88,189.32,189.31,9.82718956]
[1753081569567,55.34468397,189.32,189.31,0.03]
[1753081569778,54.66468397,189.32,189.31,0.03]
[1753081569977,55.34468397,189.32,189.31,0.03]
[1753081571147,54.66468397,189.32,189.31,0.03]
[1753081573067,55.34468397,189.32,189.31,0.03]
[1753081573978,16.78468397,189.32,189.31,0.03]
[1753081574172,37.82,189.32,189.31,0.03]
[1753081574674,37.8,189.32,189.31,0.03]
[1753081574882,16.84468397,189.33,189.31,0.03]
[1753081575083,37.8,189.32,189.31,0.03]
[1753081575662,37.8,189.32,189.31,5.214916]
[1753081575875,0.06,189.33,189.31,5.214916]
[1753081576174,0.06,189.33,189.32,36.99518432]
[1753081576369,0.06,189.36,189.35,26.0]
[1753081576553,0.06,189.36,189.35,31.184916]
[1753081577281,0.06,189.36,189.35,35.699832]
[1753081577490,1e-08,189.36,189.35,35.699832]
[1753081577776,1e-08,189.36,189.35,36.22795452]
[1753081578163,1e-08,189.36,189.35,15.50917976]
[1753081578363,1e-08,189.36,189.35,35.79614124]
[1753081581083,1e-08,189.36,189.35,36.46614124]
[1753081581275,1e-08,189.36,189.35,31.95122524]
[1753081581473,1e-08,189.36,189.35,36.46614124]
[1753081582471,1e-08,189.36,189.35,35.79614124]
[1753081583662,1e-08,189.36,189.35,36.46614124]
[1753081584682,1e-08,189.36,189.35,35.79614124]
[1753081585471,1e-08,189.36,189.35,36.46614124]
[1753081585861,1e-08,189.36,189.35,35.79614124]
[1753081586893,1e-08,189.36,189.35,31.28122524]
[1753081587186,1e-08,189.36,189.35,35.79614124]
[1753081590683,1e-08,189.36,189.35,36.46614124]
[1753081595910,1e-08,189.36,189.35,31.95122524]
[1753081596074,1e-08,189.36,189.35,36.46614124]
[1753081596275,1e-08,189.36,189.35,31.95122524]
[1753081596572,1e-08,189.36,189.35,36.46614124]
[1753081599500,1e-08,189.36,189.35,35.79614124]
[1753081600809,1e-08,189.36,189.35,35.82614124]
[1753081601040,1e-08,189.36,189.35,31.31122524]
[1753081601220,1e-08,189.36,189.35,35.82614124]
[1753081604012,1e-08,189.36,189.35,31.31122524]
[1753081604207,0.68000001,189.36,189.35,31.31122524]
[1753081604521,1e-08,189.36,189.35,36.51614124]